bitfinex/quotes_SOLUSD_20230113
["timestamp","ask_amount","ask_price","bid_price","bid_amount"]
[1673570357106,10.0,16.476,16.462,20.0]
[1673570357316,10.0,16.476,16.463,17.0]
[1673570357519,10.0,16.476,16.464,20.0]
[1673570357754,45.53,16.475,16.464,20.0]
[1673570358166,45.53,16.475,16.46,29.98335413]
[1673570358486,10.0,16.474,16.461,17.0]
[1673570358908,45.53,16.473,16.461,17.0]
[1673570359102,45.53,16.473,16.462,20.0]
[1673570359312,10.0,16.474,16.462,20.0]
[1673570359738,10.0,16.474,16.461,20.0]
[1673570359966,45.53,16.473,16.461,20.0]
[1673570360479,10.0,16.472,16.461,20.0]
[1673570362691,10.0,16.472,16.456,24.97335413]
[1673570362936,10.0,16.472,16.457,1.92]
[1673570363094,10.0,16.472,16.457,21.92]
[1673570363306,10.0,16.472,16.458,9.96407368]
[1673570363516,10.0,16.472,16.459,1.92]
[1673570363734,10.0,16.472,16.459,21.92]
[1673570363937,10.0,16.472,16.459,26.91071955]
[1673570365004,10.0,16.472,16.459,21.92]
[1673570365201,10.0,16.472,16.46,20.0]
[1673570365415,10.0,16.472,16.461,17.0]
[1673570365622,10.0,16.472,16.462,20.0]
[1673570366680,10.0,16.472,16.456,24.99071955]
[1673570366890,10.0,16.472,16.457,1.92]
[1673570367104,10.0,16.472,16.457,26.91071955]
[1673570367306,10.0,16.472,16.458,4.99071955]
[1673570367513,10.0,16.472,16.459,1.92]
[1673570367734,10.0,16.472,16.459,21.92]
[1673570367949,10.0,16.472,16.46,4.99071955]
[1673570368154,10.0,16.472,16.46,24.99071955]
[1673570368681,10.0,16.472,16.461,17.0]
[1673570368883,10.0,16.472,16.462,20.0]
[1673570369288,10.0,16.472,16.415,373.81277293]
[1673570369289,0.96,16.471,16.452,44.19666639]
[1673570369499,10.0,16.47,16.45,25.06]
[1673570369721,113.0241,16.469,16.45,25.06]
[1673570369939,0.96,16.468,16.45,25.06]
[1673570370363,46.51,16.467,16.45,25.06]
[1673570370550,10.96,16.466,16.442,114.3155796]
[1673570370765,0.96,16.465,16.443,24.99071955]
[1673570370979,10.96,16.464,16.443,24.99071955]
[1673570371300,0.96,16.463,16.445,5.29475955]
[1673570371513,10.0,16.462,16.445,5.29475955]
[1673570371708,10.0,16.462,16.446,0.96]
[1673570372343,10.0,16.462,16.445,0.30404]
[1673570372551,10.0,16.46,16.445,0.30404]
[1673570372754,35.01,16.46,16.445,0.30404]
[1673570372968,166.4118,16.459,16.445,0.30404]
[1673570373283,10.0,16.458,16.445,0.30404]
[1673570375616,10.0,16.456,16.445,0.30404]
[1673570376440,0.96,16.455,16.445,0.30404]
[1673570376867,46.54,16.455,16.445,0.30404]
[1673570377305,10.0,16.454,16.445,0.30404]
[1673570378564,0.96,16.453,16.445,0.30404]
[1673570380225,10.0,16.454,16.445,0.30404]
[1673570381479,10.0,16.454,16.445,5.29475955]
[1673570381688,10.0,16.454,16.446,20.0]
[1673570382959,10.0,16.454,16.445,0.30404]
[1673570383709,10.0,16.454,16.445,5.29475955]
[1673570384132,10.0,16.454,16.446,20.0]
[1673570388136,1.92,16.453,16.445,0.30404]
[1673570388348,45.59,16.453,16.445,0.30404]
[1673570388667,10.0,16.452,16.446,4.99071955]
[1673570388843,10.0,16.452,16.446,24.99071955]
[1673570389055,10.0,16.457,16.446,24.99071955]
[1673570389281,10.0,16.457,16.447,4.99071955]
[1673570389474,45.58,16.456,16.446,20.0]
[1673570389684,45.58,16.456,16.445,0.30404]
[1673570389915,10.0,16.457,16.445,20.30404]
[1673570390445,10.0,16.455,16.445,20.30404]
[1673570390651,10.0,16.455,16.445,0.30404]
[1673570391179,10.0,16.455,16.445,20.30404]
[1673570391364,10.0,16.455,16.446,17.0]
[1673570391574,10.0,16.457,16.446,17.0]
[1673570392441,55.58,16.457,16.446,17.0]
[1673570392637,10.0,16.457,16.446,17.0]
[1673570393269,10.0,16.457,16.445,25.29475955]
[1673570393485,1.92,16.456,16.445,20.30404]
[1673570393692,55.58,16.457,16.446,20.0]
[1673570393909,45.58,16.455,16.445,0.30404]
[1673570394101,10.0,16.455,16.445,0.30404]
[1673570394318,1.92,16.454,16.445,0.30404]
[1673570394730,0.96,16.454,16.445,0.30404]
[1673570394940,46.55,16.454,16.445,0.30404]
[1673570395250,10.0,16.453,16.445,0.30404]
[1673570396338,1.92,16.452,16.445,0.30404]
[1673570396533,45.59,16.452,16.445,0.30404]
[1673570396741,10.0,16.455,16.445,0.30404]
[1673570396957,129.8818,16.459,16.445,0.30404]
[1673570397161,45.58,16.455,16.445,0.30404]
[1673570397377,10.0,16.454,16.445,0.30404]
[1673570397688,55.59,16.454,16.445,0.30404]
[1673570397902,10.0,16.454,16.445,0.30404]
[1673570398942,129.8818,16.459,16.445,0.30404]
[1673570399155,119.8818,16.459,16.445,0.30404]
[1673570399388,10.0,16.458,16.445,0.30404]
[1673570399691,10.0,16.458,16.445,20.30404]
[1673570399894,45.58,16.457,16.445,20.30404]
[1673570400094,10.0,16.458,16.445,0.30404]
[1673570400529,45.58,16.457,16.445,20.30404]
[1673570400949,10.0,16.457,16.445,20.30404]
[1673570401150,0.96,16.456,16.446,20.0]
[1673570401368,10.0,16.457,16.445,0.30404]
[1673570402409,45.58,16.456,16.445,0.30404]
[1673570402617,45.58,16.458,16.445,0.30404]
[1673570402822,119.8818,16.459,16.445,0.30404]
[1673570403038,46.54,16.458,16.445,0.30404]
[1673570403459,119.8818,16.459,16.445,20.30404]
[1673570403673,45.58,16.458,16.446,10.0]
[1673570403883,119.8818,16.459,16.446,10.0]
[1673570404302,45.57,16.46,16.447,0.96]
[1673570404512,45.56,16.465,16.45,24.77]
[1673570404726,45.56,16.465,16.451,20.96]
[1673570404948,115.0221,16.466,16.451,21.92]
[1673570405352,115.0221,16.466,16.452,17.0]
[1673570405667,45.56,16.465,16.453,20.0]
[1673570406193,10.0,16.464,16.451,20.0]
[1673570406407,0.96,16.463,16.451,20.0]
[1673570406611,0.96,16.462,16.444,33.62938347]
[1673570406840,0.96,16.462,16.442,127.4955796]
[1673570407161,45.57,16.461,16.442,127.4955796]
[1673570407470,162.0267,16.461,16.442,114.3155796]
[1673570407880,10.0,16.46,16.442,114.3155796]
[1673570408099,10.0,16.46,16.443,10.0]
[1673570408314,10.0,16.46,16.444,1.92]
[1673570409062,10.0,16.458,16.442,114.3155796]
[1673570409463,45.58,16.457,16.442,114.3155796]
[1673570409673,45.58,16.457,16.443,20.0]
[1673570410434,10.0,16.456,16.443,20.0]
[1673570410828,45.58,16.455,16.443,20.0]
[1673570411036,10.0,16.454,16.443,20.0]
[1673570411903,10.0,16.452,16.443,20.0]
[1673570412508,45.59,16.453,16.443,20.0]
[1673570412736,10.0,16.454,16.443,20.0]
[1673570413562,0.96,16.453,16.443,20.0]
[1673570413772,10.0,16.454,16.443,20.0]
[1673570414213,45.59,16.453,16.443,20.0]
[1673570414523,10.0,16.454,16.443,20.0]
[1673570415498,45.59,16.453,16.443,20.0]
[1673570415680,10.0,16.454,16.443,20.0]
[1673570416938,45.59,16.453,16.443,20.0]
[1673570417252,10.0,16.454,16.443,20.0]
[1673570417467,45.58,16.455,16.443,20.0]
[1673570417655,55.58,16.458,16.443,20.0]
[1673570417864,10.0,16.458,16.443,20.0]
[1673570418081,45.58,16.457,16.443,20.0]
[1673570418514,45.58,16.457,16.444,17.0]
[1673570418709,10.0,16.459,16.445,20.30404]
[1673570418926,45.56,16.463,16.45,25.01]
[1673570419137,45.56,16.463,16.451,37.96]
[1673570419343,10.0,16.465,16.451,37.96]
[1673570419763,45.56,16.464,16.451,37.96]
[1673570420391,45.56,16.465,16.451,37.96]
[1673570420609,45.56,16.465,16.451,37.0]
[1673570421041,10.0,16.464,16.451,37.0]
[1673570421235,10.0,16.464,16.451,20.0]
[1673570421444,45.56,16.463,16.451,20.0]
[1673570421654,55.57,16.46,16.451,20.0]
[1673570422203,10.0,16.459,16.451,20.0]
[1673570422592,55.57,16.46,16.451,20.0]
[1673570423049,10.0,16.46,16.451,20.0]
[1673570423485,10.0,16.462,16.452,17.0]
[1673570423665,10.0,16.462,16.453,20.0]
[1673570423871,45.57,16.46,16.45,16.77]
[1673570424081,10.96,16.459,16.445,0.30404]
[1673570424318,0.96,16.458,16.445,0.30404]
[1673570424628,10.96,16.457,16.445,0.30404]
[1673570425155,46.54,16.456,16.445,0.30404]
[1673570425363,0.96,16.455,16.432,36.29]
[1673570425558,16.77,16.45,16.43,16.83]
[1673570425771,0.96,16.449,16.43,16.74]
[1673570425978,46.56,16.449,16.43,16.74]
[1673570426189,20.96,16.448,16.43,16.74]
[1673570426424,180.86,16.447,16.423,10.0]
[1673570426637,17.96,16.446,16.423,10.0]
[1673570426813,180.86,16.445,16.422,35.15301975]
[1673570427027,17.0,16.444,16.422,35.15301975]
[1673570427360,179.9,16.439,16.422,35.15301975]
[1673570427587,5.20496,16.438,16.422,35.15301975]
[1673570427769,197.86,16.437,16.422,35.15301975]
[1673570428094,10.0,16.436,16.422,35.15301975]
[1673570428312,1.92,16.435,16.422,35.15301975]
[1673570428818,10.0,16.433,16.422,35.15301975]
[1673570429035,1.92,16.432,16.422,35.15301975]
[1673570429359,10.0,16.431,16.422,35.15301975]
[1673570429555,1.92,16.43,16.422,35.15301975]
[1673570429767,47.57,16.43,16.422,35.15301975]
[1673570429976,10.0,16.429,16.422,35.15301975]
[1673570430390,45.66,16.428,16.422,35.15301975]
[1673570431020,10.0,16.427,16.422,35.15301975]
[1673570432285,1.92,16.426,16.422,35.15301975]
[1673570432503,0.96,16.426,16.422,35.15301975]
[1673570432712,10.0,16.427,16.422,35.15301975]
[1673570432936,10.0,16.425,16.422,35.15301975]
[1673570436715,10.0,16.425,16.422,0.00301975]
[1673570436927,10.0,16.423,16.418,19.3702245]
[1673570437255,10.0,16.423,16.413,267.884]
[1673570437256,10.0,16.421,16.413,267.884]
[1673570438941,110.5853,16.426,16.414,10.0]
[1673570439147,110.5853,16.426,16.414,14.99071955]
[1673570439363,110.5853,16.426,16.415,4.99071955]
[1673570439864,110.5853,16.426,16.415,24.99071955]
[1673570440287,10.0,16.425,16.415,24.99071955]
[1673570440501,10.0,16.425,16.415,4.99071955]
[1673570440824,10.0,16.425,16.414,24.99071955]
[1673570441232,10.0,16.425,16.414,20.0]
[1673570441659,0.96,16.424,16.414,20.0]
[1673570441871,10.0,16.425,16.414,20.0]
[1673570442511,10.0,16.427,16.414,20.0]
[1673570442933,10.0,16.427,16.415,17.0]
[1673570443147,10.0,16.427,16.416,20.0]
[1673570443343,10.0,16.427,16.417,17.0]
[1673570444283,0.96,16.426,16.416,20.0]
[1673570444492,11.92,16.426,16.414,20.0]
[1673570444707,10.0,16.426,16.415,17.0]
[1673570444917,10.0,16.426,16.416,20.0]
[1673570445643,10.0,16.428,16.414,20.0]
[1673570446803,1.92,16.427,16.414,20.0]
[1673570447432,10.0,16.425,16.414,20.0]
[1673570447643,1.92,16.424,16.414,20.0]
[1673570449136,1.92,16.424,16.413,267.884]
[1673570449320,45.67,16.423,16.413,267.884]
[1673570449535,10.96,16.422,16.413,267.884]
[1673570449756,0.96,16.421,16.413,267.884]
[1673570450081,10.0,16.42,16.413,267.884]
[1673570450286,55.68,16.42,16.413,267.884]
[1673570450489,10.0,16.42,16.413,267.884]
[1673570451974,45.68,16.419,16.413,267.884]
[1673570452179,55.68,16.42,16.413,267.884]
[1673570452502,10.0,16.42,16.413,267.884]
[1673570453526,0.96,16.419,16.413,267.884]
[1673570453736,0.96,16.418,16.413,267.884]
[1673570453964,0.96,16.418,16.413,82.4341]
[1673570454179,0.96,16.418,16.398,24.368335]
[1673570454180,46.65,16.417,16.398,24.368335]
[1673570454376,0.96,16.416,16.398,24.368335]
[1673570454579,10.96,16.416,16.398,24.368335]
[1673570454791,10.96,16.416,16.406,16.3609298]
[1673570455223,0.96,16.415,16.406,16.3609298]
[1673570455532,0.96,16.414,16.406,16.3609298]
[1673570455961,10.0,16.416,16.406,16.3609298]
[1673570456275,1.92,16.415,16.406,16.3609298]
[1673570457568,10.0,16.414,16.406,16.3609298]
[1673570457756,1.92,16.413,16.406,16.3609298]
[1673570458183,0.96,16.413,16.406,16.3609298]
[1673570458396,1.92,16.413,16.406,16.3609298]
[1673570459246,10.0,16.414,16.406,16.3609298]
[1673570460716,0.96,16.413,16.406,16.3609298]
[1673570462170,10.0,16.414,16.406,16.3609298]
[1673570463645,10.0,16.417,16.406,16.3609298]
[1673570464190,10.0,16.417,16.407,17.0]
[1673570464394,10.0,16.418,16.407,17.0]
[1673570464604,10.0,16.419,16.408,20.0]
[1673570465013,10.0,16.421,16.409,17.0]
[1673570465433,10.0,16.421,16.408,8.11333986]
[1673570466061,10.0,16.425,16.408,8.11333986]
[1673570466275,10.0,16.427,16.408,8.11333986]
[1673570466276,10.0,16.427,16.41,25.1]
[1673570466485,10.0,16.427,16.412,10.0]
[1673570466901,10.0,16.427,16.413,25.11333986]
[1673570467113,10.0,16.427,16.414,20.0]
[1673570467446,10.0,16.427,16.415,17.0]
[1673570467660,10.0,16.427,16.416,20.0]
[1673570467853,10.0,16.428,16.417,17.0]
[1673570468178,10.0,16.428,16.417,8.11333986]
[1673570468386,10.0,16.428,16.416,20.0]
[1673570468576,10.0,16.428,16.412,20.0]
[1673570468911,10.0,16.428,16.4,126.45]
[1673570469228,10.0,16.426,16.404,8.11333986]
[1673570469430,227.2286,16.425,16.403,109.6038]
[1673570469633,272.8986,16.425,16.404,8.12375998]
[1673570469844,10.0,16.424,16.404,8.12375998]
[1673570470286,10.0,16.424,16.407,9.08375998]
[1673570470596,10.0,16.424,16.408,8.12375998]
[1673570470781,10.0,16.424,16.409,1.92]
[1673570470994,10.0,16.424,16.404,10.0]
[1673570471208,25.3,16.42,16.403,109.6038]
[1673570471433,25.3,16.42,16.4,25.25]
[1673570471754,25.3,16.42,16.39,135.580026]
[1673570471755,10.0,16.419,16.39,160.650026]
[1673570471963,17.0,16.418,16.392,119.3417]
[1673570472274,1.92,16.417,16.392,119.3417]
[1673570472468,10.0,16.416,16.393,10.0]
[1673570472681,1.92,16.415,16.393,10.0]
[1673570473205,47.62,16.415,16.393,10.0]
[1673570473407,10.0,16.414,16.393,10.0]
[1673570473620,1.92,16.413,16.393,10.0]
[1673570473836,10.0,16.414,16.393,10.0]
[1673570474261,1.92,16.413,16.393,10.0]
[1673570475945,10.0,16.416,16.393,10.0]
[1673570476159,10.0,16.418,16.401,7.89607343]
[1673570477088,10.0,16.418,16.4,25.1]
[1673570477519,10.0,16.418,16.403,7.89607343]
[1673570477948,10.0,16.418,16.406,24.25700323]
[1673570478482,10.0,16.418,16.407,17.0]
[1673570479005,10.0,16.418,16.406,24.25700323]
[1673570479223,10.0,16.418,16.406,16.3609298]
[1673570479536,10.0,16.418,16.407,17.0]
[1673570481099,10.0,16.419,16.407,17.0]
[1673570481100,10.0,16.419,16.408,0.96]
[1673570481316,9.0,16.42,16.408,0.96]
[1673570481513,9.0,16.42,16.408,8.85607343]
[1673570481725,9.0,16.42,16.409,7.89607343]
[1673570481930,9.0,16.42,16.41,17.0]
[1673570483839,10.0,16.424,16.411,57.76679639]
[1673570484264,10.0,16.424,16.411,56.80679639]
[1673570484574,10.0,16.424,16.412,73.80679639]
[1673570484772,10.0,16.424,16.412,17.0]
[1673570484983,10.0,16.424,16.411,17.0]
[1673570485210,0.96,16.423,16.411,17.0]
[1673570485525,0.96,16.423,16.407,7.89607343]
[1673570485833,10.0,16.422,16.407,7.89607343]
[1673570487833,10.0,16.424,16.41,25.1]
[1673570488060,10.0,16.424,16.411,0.96]
[1673570488252,10.0,16.424,16.41,32.99607343]
[1673570488571,10.0,16.428,16.41,32.99607343]
[1673570488572,45.66,16.429,16.411,7.89607343]
[1673570488766,10.0,16.433,16.411,29.81607343]
[1673570488974,10.0,16.433,16.411,205.82096982]
[1673570489192,10.0,16.433,16.411,253.18097341]
[1673570489511,10.0,16.433,16.412,83.80679639]
[1673570489840,10.0,16.433,16.413,86.62286982]
[1673570490047,10.0,16.433,16.414,10.0]
[1673570490354,10.0,16.433,16.415,21.92]
[1673570490571,10.0,16.434,16.415,133.98287341]
[1673570490766,10.0,16.434,16.416,112.06287341]
[1673570490972,10.0,16.434,16.417,1.92]
[1673570491183,10.0,16.434,16.417,113.98287341]
[1673570491394,10.0,16.434,16.418,112.06287341]
[1673570491606,10.0,16.435,16.419,1.92]
[1673570491825,10.0,16.436,16.42,25.3]
[1673570492035,45.63,16.439,16.422,10.0]
[1673570492248,10.0,16.442,16.423,20.0]
[1673570492563,10.0,16.442,16.424,10.96]
[1673570492764,10.0,16.442,16.425,37.96]
[1673570492974,10.0,16.442,16.425,45.85607343]
[1673570493186,10.0,16.442,16.426,8.85607343]
[1673570493392,10.0,16.442,16.426,64.70286982]
[1673570493606,55.62,16.442,16.425,20.0]
[1673570493819,45.63,16.44,16.426,17.0]
[1673570494029,10.0,16.439,16.426,17.0]
[1673570494260,0.96,16.438,16.426,17.0]
[1673570494693,0.96,16.437,16.421,20.0]
[1673570494905,0.96,16.436,16.421,20.0]
[1673570495087,0.96,16.436,16.417,7.89607343]
[1673570495088,0.96,16.436,16.41,126.63]
[1673570495304,46.6,16.435,16.413,114.5269]
[1673570495530,10.0,16.433,16.413,114.5269]
[1673570495735,112.4,16.432,16.413,114.5269]
[1673570495944,113.36,16.432,16.413,114.5269]
[1673570496164,10.0,16.431,16.413,114.5269]
[1673570496796,45.63,16.437,16.417,17.0]
[1673570497111,10.0,16.437,16.42,25.3]
[1673570497308,1.92,16.436,16.42,25.3]
[1673570497730,1.92,16.436,16.42,32.31489886]
[1673570497939,1.92,16.436,16.421,17.0]
[1673570498143,0.96,16.436,16.421,17.0]
[1673570498356,10.0,16.437,16.421,24.01489886]
[1673570498591,110.1176,16.438,16.422,11.92]
[1673570498776,110.1176,16.438,16.422,31.92]
[1673570498990,110.1176,16.438,16.423,7.01489886]
[1673570499195,110.1176,16.438,16.424,20.0]
[1673570499621,110.1176,16.438,16.425,17.0]
[1673570499622,10.0,16.437,16.425,17.0]
[1673570499830,10.0,16.437,16.426,20.0]
[1673570500590,10.0,16.437,16.423,20.0]
[1673570500777,10.0,16.437,16.424,0.96]
[1673570500990,10.0,16.437,16.423,7.97489886]
[1673570501197,10.0,16.437,16.425,7.01489886]
[1673570501409,10.0,16.437,16.424,20.0]
[1673570501608,10.0,16.437,16.425,7.01489886]
[1673570501815,10.0,16.437,16.426,37.0]
[1673570502251,10.0,16.437,16.427,7.01489886]
[1673570502785,0.96,16.436,16.426,20.0]
[1673570503103,10.0,16.437,16.424,20.0]
[1673570503300,10.0,16.437,16.425,17.0]
[1673570503631,10.0,16.439,16.426,20.0]
[1673570503821,10.0,16.439,16.426,27.01489886]
[1673570504031,10.0,16.439,16.427,7.01489886]
[1673570505516,25.3,16.44,16.427,7.01489886]
[1673570505723,10.0,16.441,16.427,7.01489886]
[1673570506360,129.3282,16.442,16.428,17.0]
[1673570506777,129.3282,16.442,16.429,7.01489886]
[1673570506983,10.0,16.441,16.429,7.01489886]
[1673570507196,0.96,16.44,16.426,20.0]
[1673570507396,0.96,16.439,16.423,7.01489886]
[1673570507603,0.96,16.438,16.424,20.0]
[1673570508771,35.16,16.44,16.424,27.01489886]
[1673570508991,0.96,16.437,16.424,20.0]
[1673570509188,0.96,16.438,16.422,27.01489886]
[1673570509509,10.0,16.437,16.422,20.0]
[1673570509728,1.92,16.436,16.422,20.0]
[1673570510139,10.0,16.437,16.422,20.0]
[1673570510343,1.92,16.436,16.422,20.0]
[1673570510562,10.0,16.435,16.422,20.0]
[1673570510754,1.92,16.434,16.421,20.0]
[1673570511171,25.3,16.43,16.417,7.01489886]
[1673570511511,0.96,16.429,16.411,117.8497]
[1673570511821,56.62,16.429,16.411,117.8497]
[1673570512031,10.0,16.428,16.411,117.8497]
[1673570512236,0.96,16.427,16.411,117.8497]
[1673570513278,0.96,16.426,16.412,7.01489886]
[1673570513490,0.96,16.425,16.412,7.01489886]
[1673570513819,0.96,16.424,16.413,20.0]
[1673570514231,0.96,16.424,16.401,10.0]
[1673570514444,25.23,16.42,16.401,124.2682]
[1673570514766,25.23,16.42,16.406,23.37582866]
[1673570514954,11.92,16.419,16.406,23.37582866]
[1673570517273,10.0,16.418,16.406,23.37582866]
[1673570517484,1.92,16.417,16.406,16.3609298]
[1673570519700,10.0,16.429,16.407,20.96]
[1673570520021,10.0,16.429,16.407,30.96]
[1673570520022,10.0,16.428,16.407,30.96]
[1673570520338,10.0,16.428,16.408,7.97489886]
[1673570520556,10.0,16.428,16.409,20.96]
[1673570520871,10.0,16.428,16.409,7.01489886]
[1673570521055,45.66,16.427,16.406,16.3609298]
[1673570521261,0.96,16.426,16.407,7.01489886]
[1673570521475,1.92,16.426,16.407,7.01489886]
[1673570521689,11.92,16.426,16.407,7.01489886]
[1673570521898,119.0402,16.425,16.407,7.01489886]
[1673570522112,11.92,16.424,16.407,7.01489886]
[1673570522659,10.96,16.424,16.407,7.01489886]
[1673570523061,119.0402,16.425,16.407,7.01489886]
[1673570523271,119.0402,16.425,16.408,1.92]
[1673570523703,10.0,16.424,16.41,25.11]
[1673570524529,10.0,16.424,16.41,32.12489886]
[1673570524744,10.0,16.428,16.41,32.12489886]
[1673570524745,121.4757,16.429,16.411,20.0]
[1673570525072,10.0,16.43,16.412,7.97489886]
[1673570525271,10.0,16.431,16.413,20.96]
[1673570525484,10.0,16.431,16.413,27.97489886]
[1673570525685,10.0,16.431,16.414,7.97489886]
[1673570525896,10.0,16.431,16.415,37.0]
[1673570526307,10.0,16.431,16.416,0.96]
[1673570526522,10.0,16.431,16.417,0.96]
[1673570527158,628.5373,16.434,16.417,0.96]
[1673570527595,628.5373,16.434,16.415,44.01489886]
[1673570527790,628.5373,16.434,16.416,1.92]
[1673570528203,674.1773,16.434,16.416,0.96]
[1673570528411,628.5373,16.434,16.415,27.01489886]
[1673570528625,55.65,16.433,16.415,20.0]
[1673570528858,10.0,16.432,16.415,7.01489886]
[1673570529064,10.0,16.432,16.416,20.0]
[1673570529259,10.0,16.433,16.416,20.0]
[1673570529472,628.5373,16.434,16.417,7.01489886]
[1673570529689,231.9373,16.434,16.417,7.01489886]
[1673570529891,231.9373,16.434,16.418,1.92]
[1673570530722,45.63,16.438,16.42,25.3]
[1673570530937,159.9853,16.438,16.421,18.92]
[1673570531171,114.3553,16.438,16.422,20.0]
[1673570531479,114.3553,16.438,16.423,1.92]
[1673570531931,55.62,16.441,16.423,8.93489886]
[1673570532131,10.0,16.441,16.424,20.0]
[1673570532341,10.0,16.441,16.425,17.0]
[1673570532540,146.5,16.44,16.41,135.83]
[1673570532745,10.0,16.439,16.412,121.919]
[1673570532956,20.0,16.438,16.413,7.01489886]
[1673570533166,84.38725104,16.438,16.412,121.919]
[1673570533395,10.0,16.436,16.412,128.93389886]
[1673570533592,1.92,16.435,16.412,128.93389886]
[1673570533802,10.0,16.434,16.413,0.96]
[1673570534026,118.3058,16.433,16.413,0.96]
[1673570534238,10.0,16.432,16.412,128.93389886]
[1673570534765,45.65,16.431,16.413,20.0]
[1673570534952,45.65,16.431,16.414,10.0]
[1673570535164,45.65,16.431,16.415,20.0]
[1673570535374,45.65,16.432,16.415,20.0]
[1673570535604,45.65,16.432,16.416,1.92]
[1673570535915,45.65,16.432,16.416,8.93489886]
[1673570536539,10.0,16.431,16.416,1.92]
[1673570536752,10.0,16.431,16.415,20.0]
[1673570536959,45.65,16.43,16.413,20.0]
[1673570537794,45.65,16.43,16.414,10.96]
[1673570538004,45.65,16.43,16.415,20.96]
[1673570538227,45.65,16.431,16.416,0.96]
[1673570538442,45.65,16.431,16.416,7.97489886]
[1673570538648,45.65,16.431,16.417,0.96]
[1673570538846,10.0,16.43,16.418,0.96]
[1673570539587,10.0,16.43,16.415,27.01489886]
[1673570539801,45.66,16.429,16.416,0.96]
[1673570540019,45.66,16.429,16.416,1.92]
[1673570540331,45.66,16.429,16.416,0.96]
[1673570540537,45.65,16.431,16.417,0.96]
[1673570540744,45.65,16.431,16.418,0.96]
[1673570540951,10.0,16.432,16.42,25.3]
[1673570541167,55.63,16.439,16.421,21.92]
[1673570541376,45.63,16.44,16.421,21.92]
[1673570541570,45.63,16.44,16.422,10.0]
[1673570541782,164.4718,16.441,16.423,20.96]
[1673570542003,164.4718,16.441,16.423,45.93489886]
[1673570542226,164.4718,16.441,16.423,37.0]
[1673570542420,10.0,16.44,16.423,37.0]
[1673570542833,45.63,16.439,16.423,37.0]
[1673570543167,10.0,16.438,16.423,37.0]
[1673570543597,45.63,16.437,16.423,37.0]
[1673570544135,10.0,16.436,16.423,37.0]
[1673570544328,10.0,16.436,16.423,20.0]
[1673570544657,55.64,16.436,16.422,20.0]